Cogmind - Beta 17 @@@ ROGUE MODE // 2026.07.30 @ 09:01:20 Player: aperiodic Result: Destroyed by IF-70X(R) with Subdweller Machine Gun Performance ------------- Evolutions (0) 0 Regions Visited (2) 400 Robots Destroyed (28) 140 Value Destroyed (573) 573 Prototype IDs (0) 0 Alien Tech Used (0) 0 Bonus (0) 0 TOTAL SCORE: 1113 Bonus ------- None Cogmind --------- Core Integrity 0/250 Matter 300/300 Energy 250/250 System Corruption 0% Temperature Cool (0) Movement Treading (260) Ox1 Location -10/Subcaves Parts ------- > --- POWER (1) -------- Ion Engine > --- PROPULSION (2) --- Spiked Treads Subdweller Monowheel > --- UTILITY (2) ------ Scrap Shield > --- WEAPON (2) ------- Flail Flail > --- INVENTORY (5) ---- Light Treads Shotgun Shotgun Grenade Launcher Shrapnel Trap Peak State ------------ > --- POWER ------------ Ion Engine > --- PROPULSION ------- Spiked Treads Subdweller Monowheel > --- UTILITY ---------- Scrap Shield > --- WEAPON ----------- Flail Flail > --- INVENTORY -------- Light Treads Shotgun Shotgun Shotgun Grenade Launcher [Rating: 13] Favorites ----------- Power Ion Engine Engine Ion Engine Propulsion Wheel Treads Spiked Treads Wheel Wheel Utility Seismic Detector Device Seismic Detector Storage Small Storage Unit Protection Scrap Shield Weapon Flail Energy Gun Small Laser Ballistic Gun Shotgun Launcher Grenade Launcher Special Weapon Mining Laser Impact Weapon Flail Build | -11 -10 -10 ------- Run | Yrd Mat Sub Slots Evolved . | . . . Power . | . . . Propulsion . | . . . Utility . | . . . Weapon . | . . . Parts Attached 21 | 8 8 5 Power 1 | 1 . . Engine 1 | 1 . . Core . | . . . Reactor . | . . . Propulsion 7 | 2 3 2 Treads 3 | . 2 1 Leg . | . . . Wheel 4 | 2 1 1 Hover . | . . . Flight . | . . . Utility 4 | 2 1 1 Device 1 | 1 . . Storage 2 | 1 1 . Processor . | . . . Hackware . | . . . Protection 1 | . . 1 Artifact . | . . . Weapon 9 | 3 4 2 Energy Gun 2 | 2 . . Energy Cannon . | . . . Ballistic Gun 3 | 1 2 . Ballistic Cannon . | . . . Launcher 1 | . 1 . Special Weapon 1 | . 1 . Impact Weapon 2 | . . 2 Slashing Weapon . | . . . Piercing Weapon . | . . . Special Melee Weapon . | . . . Unidentified Prototypes . | . . . Parts Lost 3 | . . 3 Power . | . . . Propulsion 2 | . . 2 Utility 1 | . . 1 Weapon . | . . . Highest Loss Streak 3 | . . 3 To Critical Strikes . | . . . Average Backups 6 | 3 8 5 Power . | . 1 . Propulsion 1 | 1 3 1 Utility . | . . . Weapon 3 | 1 4 3 Tool/Special . | . . . Unused Backups 11 | . 1 10 Power 1 | . . 1 Propulsion 3 | . . 3 Utility . | . . . Weapon 7 | . 1 6 Tool/Special . | . . . Average Slot Usage (%) 89 | . 99 83 Engine 14 | . 14 14 Treads 6 | . 6 7 Wheel 20 | . 21 19 Device 9 | . 14 6 Storage 5 | . 14 . Protection 4 | . . 6 Ballistic Gun 10 | . 26 1 Impact Weapon 16 | . . 26 Peak Build Rating 13 | 7 11 13 Average Rating 9 | 5 9 10 On Entrance 6 | . 7 11 Avg Prop Armor Cover (%) 1 | . . 1 Naked Turns . | . . . Heaviest Build 92 | 13 92 92 Greatest Support 40 | 20 40 20 Greatest Overweight (x) 8 | . 4 8 Average Overweight (x) . | . 1 . Largest Inventory Capacity 25 | 8 25 25 Average Capacity 7 | 7 11 5 Most Carried 17 | 6 17 17 Average Carried 6 | 3 8 5 Final Capacity 25 | 8 25 5 Final Carried 17 | 6 17 5 Class Distribution -------------------- 100% | Mutant Dominant Class ---------------- Mutant | -10/Materials Mutant | -10/Subcaves Resources | -11 -10 -10 ----------- Run | Yrd Mat Sub Matter Collected 789 | 284 319 186 Remotely . | . . . Salvage Created 769 | 107 352 310 Parts 59 | 7 25 27 Haulers Intercepted 1 | . 1 . Recyclers Shooed 1 | . 1 . Parts Field Recycled . | . . . Retrieved Matter . | . . . Parts Self-Destructed 13 | . . 13 Prevented . | . . . Parts Restored . | . . . Kills | -11 -10 -10 ------- Run | Yrd Mat Sub Combat Hostiles Destroyed 19 | . 11 8 Melee 2 | . . 2 Guns 7 | . 3 4 AOE 8 | . 8 . Classes Destroyed 7 | 2 4 1 Tunneler 3 | 2 1 . Hauler 1 | . 1 . Recycler 3 | 1 2 . Watcher 2 | . 2 . Swarmer 9 | . 9 . Grunt 6 | . 2 4 Subdweller 4 | . . 4 Best Kill Streak 4 | 3 3 4 Combat Bots Only 4 | . 3 4 Max Kills in Single Turn 3 | 1 3 1 Gunslinging . | . . . Exploded 3 | . 3 . Melee 1 | . . 1 Uniques/NPCs Destroyed . | . . . Combat | -11 -10 -10 -------- Run | Yrd Mat Sub Hostile Shots Fired 69 | . 20 49 Missed 27 | . 6 21 Hits 42 | . 14 28 Projectile 42 | . 14 28 AOE 2 | . . 2 Critical Strikes 1 | . . 1 Damage Taken 779 | . 162 617 Core 252 | . 40 212 Absorbed by Shields . | . . . Core Remaining (%) 100 | 100 . . Volleys Fired 41 | 5 26 10 Largest 2 | 2 2 2 Hottest 60 | 60 46 46 Shots Fired 76 | 10 46 20 Gun 71 | 10 41 20 Cannon . | . . . Launcher 5 | . 5 . Special . | . . . Kinetic 66 | 5 41 20 Thermal 5 | 5 . . Explosive 5 | . 5 . Electromagnetic . | . . . Robot Hit Streak 10 | 8 10 7 Robot Miss Streak 3 | . 3 2 Penetration Max . | . . . Secondary Targets 2 | . . 2 Max Gunslinging Chain 1 | . . 1 Shots Hit Robots 72 | 8 35 29 Core Hits 42 | 4 24 14 Critical Kills . | . . . Critical Parts Destroyed 1 | . . 1 Critical Strikes 2 | . . 2 Smash 2 | . . 2 Melee Attacks 15 | . . 15 Impact 15 | . . 15 Slashing . | . . . Piercing . | . . . Sneak Attacks . | . . . Combat Hostiles . | . . . Follow-up Attacks 2 | . . 2 Damage Inflicted 1591 | 75 841 675 Guns 773 | 75 428 270 Cannons . | . . . Explosions 413 | . 413 . Melee 405 | . . 405 Ramming . | . . . Kinetic 720 | 22 428 270 Thermal 53 | 53 . . Explosive 413 | . 413 . Electromagnetic . | . . . Impact 405 | . . 405 Slashing . | . . . Piercing . | . . . Highest Corruption . | . . . Average Corruption . | . . . Corruption Purged . | . . . Corruption Blocked . | . . . Overload Shots . | . . . Overflow Damage 83 | . 28 55 Projectiles . | . . . Explosions 28 | . 28 . Melee 55 | . . 55 Knockbacks 4 | . . 4 Impact 4 | . . 4 Kinetic . | . . . Secondary . | . . . Self-Inflicted Damage 57 | . 57 . Shots 2 | . 2 . Rammed . | . . . Targets Rammed . | . . . Kicked . | . . . Crushed . | . . . Highest Temperature 40 | 40 1 . Average Temperature 15 | 19 1 . Received Heat Transfer 114 | . 18 96 Siege Activations . | . . . Martial Activations . | . . . Shielding Activations . | . . . Robots Disrupted . | . . . Combat Hostiles . | . . . Robots Corrupted 2 | . . 2 Combat Hostiles 2 | . . 2 Parts Fried 1 | . . 1 Impact Corruptions 2 | . . 2 Robots Melted . | . . . Combat Hostiles . | . . . Parts Melted . | . . . Heat Transferred 125 | 125 . . Parts Sabotaged . | . . . Parts Stolen . | . . . Parts Stripped . | . . . Power Chain Reactions . | . . . Alert | -11 -10 -10 ------- Run | Yrd Mat Sub Maximum Alert Level . | . . . Low Security (%) 100 | 100 100 . Level 1 . | . . . Level 2 . | . . . Level 3 . | . . . Level 4 . | . . . Level 5 . | . . . High Security . | . . . Max Security . | . . . Peak Influence 133 | 5 133 . Initial . | . . . Average 53 | . 59 . Influence Increases 483 | 15 368 100 Destroy 0b10 Robot/C 300 | . 220 80 Destroy 0b10 Robot/NC 45 | 15 30 . Destroy Leader 66 | . 46 20 Disable Machine 30 | . 30 . Destroy Structure 12 | . 12 . Partial Spotted 15 | . 15 . Lose Combat Pursuer 15 | . 15 . Influence Decreases 483 | 15 288 180 Entered New Map 39 | . . 39 Time Decay 444 | 15 288 141 Squads Dispatched 1 | . 1 . Investigation . | . . . Extermination . | . . . Reinforcement 1 | . 1 . Assault . | . . . Garrison . | . . . Intercept . | . . . Searches Triggered . | . . . Construction Impeded . | . . . Haulers Reinforced . | . . . Active Scanning Responses . | . . . Cargo Convoy Interrupts . | . . . Stealth | -11 -10 -10 --------- Run | Yrd Mat Sub Distress Signals 2 | . 2 . Communications Jammed . | . . . Distress Signals . | . . . Times Spotted 28 | . 16 12 Peak Tracking Total 4 | . 4 4 Tactical Retreats 1 | . 1 . Traps | -11 -10 -10 ------- Run | Yrd Mat Sub Traps Triggered . | . . . Indirectly . | . . . Trap Hack Attempts . | . . . Triggered . | . . . Disarmed . | . . . Reprogrammed . | . . . Reused . | . . . Traps Extracted . | . . . Installed . | . . . Triggered . | . . . Most Traps Carried 1 | . . 1 Machines | -11 -10 -10 ---------- Run | Yrd Mat Sub Machines Disabled 3 | . 3 . Max in Single Turn 1 | . 1 . Machines Repaired . | . . . Machines Dismantled . | . . . Machines Sabotaged . | . . . Overloaded Fab Kills . | . . . Hacking | -11 -10 -10 --------- Run | Yrd Mat Sub Machines Accessed . | . . . Terminals . | . . . Fabricators . | . . . Repair Stations . | . . . Recycling Units . | . . . Scanalyzers . | . . . Garrison Access . | . . . Total Hacks . | . . . Successful . | . . . Failed . | . . . Catastrophic . | . . . Database Lockouts . | . . . Manual . | . . . Terminals . | . . . Fabricators . | . . . Repair Stations . | . . . Recycling Units . | . . . Scanalyzers . | . . . Garrison Access . | . . . Terminal Hacks . | . . . Fabricator Hacks . | . . . Repair Station Hacks . | . . . Recycling Unit Hacks . | . . . Scanalyzer . | . . . Garrison Access Hacks . | . . . Unauthorized Hacks . | . . . Terminals . | . . . Fabricators . | . . . Repair Stations . | . . . Recycling Units . | . . . Scanalyzers . | . . . Garrison Access . | . . . Data Cores Recovered . | . . . Used . | . . . Hacking Detections . | . . . Full Trace Events . | . . . Feedback Events . | . . . Feedback Blocked . | . . . Robot Schematics Acquired . | . . . Robots Built . | . . . Authchips . | . . . Time . | . . . Total Robot Build Rating . | . . . Part Schematics Acquired . | . . . Parts Built . | . . . Authchips . | . . . Time . | . . . Total Part Build Rating . | . . . Part Studies Acquired . | . . . Parts Repaired . | . . . Time . | . . . Parts Recycled . | . . . Recycled Matter . | . . . Retrieved Matter . | . . . Retrieved Components . | . . . Parts Scanalyzed . | . . . Part Schematics Acquired . | . . . Parts Damaged . | . . . Bothacking | -11 -10 -10 ------------ Run | Yrd Mat Sub Used RIF Installer . | . . . Robots Hacked . | . . . Non-combat . | . . . Combat . | . . . Robot Hacks Applied . | . . . Relay Couplers Released . | . . . Fabnet Peak Effective % . | . . . Robots Rewired . | . . . Allies Hacked . | . . . Hacks Repelled . | . . . Allies | -11 -10 -10 -------- Run | Yrd Mat Sub Total Allies . | . . . Largest Group . | . . . Highest-Rated Group . | . . . Highest-Rated Ally . | . . . Total Orders . | . . . Ally Attacks . | . . . Total Damage . | . . . Kills . | . . . Allies Corrupted . | . . . Allies Melted . | . . . Intel | -11 -10 -10 ------- Run | Yrd Mat Sub Active Infowar (turns) 1750 | 16 973 761 Seismic 1750 | 16 973 761 Robot Analysis Total . | . . . Derelict Logs Recovered 1 | . . 1 Drone Launches . | . . . Drone Recoveries . | . . . Exploration | -11 -10 -10 ------------- Run | Yrd Mat Sub Turns Passed 2696 | 111 973 1612 Spaces Moved 1060 | 95 414 551 Core 21 | 2 . 19 Treads 384 | . 77 307 Legs . | . . . Wheels 655 | 93 337 225 Hover . | . . . Flight . | . . . Fastest Speed 50 | 50 80 80 Average Speed 145 | 79 111 182 Slowest Speed 450 | 80 160 450 Overloaded Moves . | . . . Propulsion Burnouts . | . . . Robots Hopped . | . . . Potential Cave-ins . | . . . Cave-ins Triggered . | . . . Exploration Rate (%) 26 | 4 44 31 Regions Visited 2 Branch Regions 1 Pre-discovered Areas 1 | . . 1 Known Exits Taken . | . . . Unknown Exits Taken 2 | 1 1 . Scrap Searched 3 | . . 3 Spaces Dug . | . . . Terrain Destroyed 11 | . 11 . Melee . | . . . Projectile . | . . . AOE 11 | . 11 . Terrain Rammed . | . . . Walls Destroyed . | . . . Machines Disabled . | . . . Actions | -11 -10 -10 --------- Run | Yrd Mat Sub Total 2116 | 117 879 1120 Wait 938 | 4 403 531 Move 1058 | 94 413 551 Hop . | . . . Pick Up 24 | 5 16 3 Fast Attach 11 | 8 . 3 Attach 2 | . 2 . Detach 2 | 1 1 . Swap 16 | . 12 4 Drop 10 | . 6 4 Fire 41 | 5 26 10 Melee 13 | . . 13 Ram . | . . . Kick . | . . . Crush . | . . . Escape Stasis . | . . . Rewire . | . . . Trap . | . . . Miscellaneous 1 | . . 1 Route ------- -11/Scrapyard -10/Materials (discovered 3 exits: [*Mat] / [*Min] / [*Sub]) -10/Subcaves (discovered 1 exit: [*Mat]) History --------- Turn | Location | Event 6 | -11/Scrapyard | Discovered new exit (range 15) 112 | -11/Scrapyard | Entered Materials 133 | -10/Materials | Discovered new exit (range 13) 303 | -10/Materials | Build established: Mutant 540 | -10/Materials | Discovered new exit (range 8) 626 | -10/Materials | Discovered new exit (range 16) 1085 | -10/Materials | Entered Subcaves 1086 | -10/Subcaves | Approached by a straggling Scientist 1167 | -10/Subcaves | Discovered new exit (range 10) 1286 | -10/Subcaves | Learned location of Zion (-6) 1286 | -10/Subcaves | Met a Zionite searching for "candidates" 1841 | -10/Subcaves | Core integrity fell below 50% 1841 | -10/Subcaves | Ambushed by Subdweller buried in earth 1841 | -10/Subcaves | Ambushed by Subdweller buried in earth 1877 | -10/Subcaves | Lost 3 parts (2n1u) 1877 | -10/Subcaves | Core integrity fell below 20% 2528 | -10/Subcaves | Learned location of 1 exit from Materials 2549 | -10/Subcaves | Disturbed a concealed Subdweller 2697 | -10/Subcaves | Destroyed by IF-70X(R) with Subdweller Machine Gun Last Messages --------------- 02565_ 9G-EM2(R) system terminally corrupted. 02565_ Sub. Optics fried. 02567_ Acquired 23 matter. 02580_ Searching scrap... 02580_ Found Sub. Power Source. 02580_ Found Battle Cannon. 02580_ Found 32 Matter. 02587_ Searching scrap... 02587_ Found Barrage Gun. 02587_ Found Shrapnel Trap. 02587_ Found 31 Matter. 02590_ Searching scrap... 02590_ Found Sub. Power Source. 02590_ Found Battle Rifle. 02590_ Found 52 Matter. 02608_ Dropped Shotgun. 02614_ Acquired Shrapnel Trap. 02625_ Subatomizers dissect the Corrupted Disposable Heat Sink. 02635_ Subatomizers dissect the Battle Cannon. Map ----- +----------------------------------------------------+ | ?????????????????????????????????????????????????? | | ?????????????????????????????????????????????????? | | ?????????????????????????????????????????????????? | | ?????????????????????????????????????????????????? | | ?????????????????????????????????????????????????? | | ?????????????????????????????????????????????????? | | ?????????????????????????????????????????????????? | | ?????????????????????????????????????????????????? | | ?????????????????????????????????????????????????? | | ?????????????????????????????????????????????????? | | ????????????????????????"????????????????????????? | | ????????????????????????""???????????????????????? | | ???????????????????????? ???????????????????????? | | ???????????????????????? "???? ??????????????????? | | ?????????????????????### ???" ??????????????????? | | ????????????????????? ??? ??????????????????? | | ?????????????????????# ??? ##????????????????? | | ?????????????????????# #??? #????????????????? | | ?????????????????????# ##?? ##????????????????? | | ?????????????????????# #?# #????????????????? | | ?????????????????????? ## #?????????????????? | | ??????????????????????? #?????????????????? | | ???????????????????????# ? #?????????????????? | | ???????????????????????# ##?# #?????????????????? | | ???????????????????????# #?# ##????????????????? | | ???????????????????????#R@### ?????????????????? | | ???????????????????????# ## #?????????????????? | | ??????????????????????# # # ###???????????????? | | ??????????????????????#### R# #???????????????? | | ????????????????????###### #???????????????? | | ????????????????????#[%## #???????????????? | | ????????????????????#% "##< ###???????????????? | | ????????????????????##[&]*[ ###???????????????? | | ????????????????????# *#%#< #???????????????? | | ????????????????????# ###& #???????????????? | | ????????????????????####&%! ####???????????????? | | ??????????????????????## && ##??????????????????? | | ????????????????????### #???????????????????? | | ????????????????????# ###??#####????????????? | | ????????????????????## #?### ?????????????? | | ?????????????????????### ### # #???????????? | | ??????????????????????# #???????????? | | ??????????????????????# # # #????????????? | | ??????????????????????## # #?????##???????????? | | ?????????????????????## # ##????? ####????????? | | ?????????????????##### #???? #????????? | | ??????????????#### #???? #???????? | | ??????????????# ##??# ####????? | | ?????????????# ### ???? | | ?????????? " # ???? | +----------------------------------------------------+ Best States ------------- Heat Dissipation 25 Energy Generation 10 Energy Capacity 250 Matter Stores 300 Matter Capacity 300 Sight Range 16 Terrain Scan Density 10 Armor Coverage 800 Evasion (%) 44 Recoil Reduction 2 Item Schematics ----------------- None Robot Schematics ------------------ None Fabricated ------------ Nothing Repaired ---------- Nothing Studied --------- None Alien Tech Used ----------------- None Achievements -------------- None Challenges ------------ None Game ------ Seed ThiefImprovedAirjet Manual? 0 Play Time 00:18:33 Cumulative 783.0 hours Start 2026.07.30 @ 08:43:34 End 2026.07.30 @ 09:01:20 Sessions 1 Manual Loads 0 Difficulty Rogue Special Mode None Game No. 289 Rogue 285 Adventurer 4 Explorer 0 Win Type - Total 21 Types 9/2/6/0/0/0/2/2/0/0 Lore% 89 Gallery% 77 Achievement% 61 Wizard Run 0 Options --------- Layout 1 ASCII 0 Keyboard 0 Movement Numpad Keybinds 0 Fullscreen 1 Font 40/SmallcapsGlow Map View 50x40 Zoom Use 0% Tactical HUD 1 Map Filters NONE Filters NONE Steam 1 RUN: 9602c6b7-b248-4411-90e3-44b0a304c578